bitfinex-derivatives/quotes_ETHF0:USTF0_20250919
["timestamp","ask_amount","ask_price","bid_price","bid_amount"]
[1758306760059,0.7063,4456.3,4456.2,3.2078]
[1758306760258,1.47750193,4456.3,4456.2,3.2078]
[1758306760662,1.47750193,4456.3,4456.2,3.9349]
[1758306761060,0.98310193,4456.3,4456.2,4.33864]
[1758306761458,0.77120193,4456.3,4456.2,4.33864]
[1758306762863,1.18000193,4456.3,4456.2,3.9349]
[1758306763070,0.7063,4455.6,4455.5,0.5219]
[1758306763362,1.47750193,4455.6,4455.5,0.8463]
[1758306763574,1.18000193,4455.6,4455.5,0.8463]
[1758306763973,1.18000193,4455.6,4455.5,1.2501]
[1758306764474,0.98310193,4455.6,4455.5,1.2501]
[1758306764875,0.77120193,4455.6,4455.5,1.2501]
[1758306766472,0.77120193,4455.6,4455.5,1.4781]
[1758306770065,0.77120193,4455.6,4455.5,1.2501]
[1758306770270,0.77120193,4455.6,4455.5,1.4781]
[1758306771475,0.98310193,4455.6,4455.5,1.2501]
[1758306771675,0.98310193,4455.6,4455.5,1.4781]
[1758306772176,0.77120193,4455.6,4455.5,1.4781]
[1758306775076,0.77120193,4455.6,4455.5,5.4781]
[1758306775286,1.59678873,4457.2,4457.0,0.1846]
[1758306775476,0.5094,4457.4,4457.3,0.81234]
[1758306775878,0.2975,4457.4,4457.3,0.99694]
[1758306777278,3.2078,4458.4,4457.9,0.60708]
[1758306777279,0.8161,4458.0,4457.9,0.60708]
[1758306777871,0.8161,4458.0,4457.9,0.81228]
[1758306783089,0.6192,4458.0,4457.9,0.99618]
[1758306783292,0.4073,4458.0,4457.9,0.99618]
[1758306783490,0.6132,4458.0,4457.9,0.99618]
[1758306785191,0.1098,4458.0,4457.9,0.99618]
[1758306785400,0.8496,4458.5,4458.4,0.80984]
[1758306785695,0.8496,4458.5,4458.4,4.01764]
[1758306786191,0.8496,4458.5,4458.4,4.20154]
[1758306786192,0.6418,4458.5,4458.4,4.20154]
[1758306786394,0.3188,4458.5,4458.4,4.20154]
[1758306786796,0.1256,4459.0,4458.9,0.40349]
[1758306786995,0.5393,4459.0,4458.9,0.80979]
[1758306787489,1.08958145,4459.0,4458.9,0.80979]
[1758306789495,1.08958145,4459.0,4458.9,0.60429]
[1758306790493,1.08958145,4459.0,4458.9,0.80979]
[1758306792492,1.08958145,4459.0,4458.9,0.60429]
[1758306792690,1.08958145,4459.0,4458.9,0.80979]
[1758306793089,0.88178145,4459.0,4458.9,0.99369]
[1758306793295,0.4444,4459.0,4458.9,4.20149]
[1758306793494,0.67543245,4459.0,4458.9,4.20149]
[1758306794696,0.88133245,4459.0,4458.9,4.42949]
[1758306794894,0.88133245,4459.0,4458.9,4.24559]
[1758306795986,0.88133245,4459.0,4458.9,4.42949]
[1758306796190,0.67543245,4459.0,4458.9,4.42949]
[1758306796697,0.87723245,4459.0,4458.9,4.01759]
[1758306796898,0.87723245,4459.0,4458.9,4.24559]
[1758306797602,0.87723245,4459.0,4458.9,4.42949]
[1758306801098,0.54983245,4459.0,4458.9,4.42949]
[1758306801300,0.23103245,4459.0,4458.9,4.42949]
[1758306803101,1.08503245,4459.0,4458.9,3.61129]
[1758306803293,1.6109437,4459.0,4458.9,3.61129]
[1758306804306,1.6109437,4459.0,4458.9,0.63149]
[1758306805408,1.6109437,4459.0,4458.9,0.40349]
[1758306807800,1.6109437,4459.0,4458.9,0.60429]
[1758306808402,1.6109437,4459.0,4458.9,3.81209]
[1758306808604,1.6109437,4459.0,4458.9,4.01759]
[1758306809599,1.6109437,4459.0,4458.9,3.61129]
[1758306810206,1.6109437,4459.0,4458.9,4.02189]
[1758306811003,1.4031437,4459.0,4458.9,4.20619]
[1758306811300,1.1972437,4459.0,4458.9,4.20619]
[1758306811502,1.3999437,4459.0,4458.9,4.02189]
[1758306811704,1.1972437,4459.0,4458.9,4.20619]
[1758306812008,0.7569437,4459.0,4458.9,4.20619]
[1758306812208,1.2075437,4459.0,4458.9,4.20619]
[1758306812512,1.4102437,4459.0,4458.9,4.20619]
[1758306812700,1.4102437,4459.0,4458.9,4.02189]
[1758306812896,1.61475839,4459.0,4458.9,4.02189]
[1758306813410,0.75885839,4459.0,4458.9,4.20619]
[1758306813613,0.75885839,4459.0,4458.9,4.43419]
[1758306815309,1.08035839,4459.0,4458.9,4.43419]
[1758306815714,1.20945839,4459.0,4458.9,4.43419]
[1758306816307,1.41215839,4459.0,4458.9,4.43419]
[1758306817011,0.75885839,4459.0,4458.9,4.43419]
[1758306818415,0.24784839,4459.0,4458.9,4.43419]
[1758306819116,0.24784839,4459.0,4458.9,8.43419]
[1758306819316,0.24784839,4459.0,4458.9,4.43419]
[1758306819914,0.24784839,4459.0,4458.9,4.20619]
[1758306820106,0.56934839,4459.0,4458.9,4.43419]
[1758306820311,1.10374839,4459.0,4458.9,3.4041]
[1758306820613,1.10374839,4459.0,4458.9,3.2078]
[1758306820814,5.10374839,4459.0,4458.9,3.2078]
[1758306821018,5.09052996,4459.0,4458.9,3.2078]
[1758306821216,5.09052996,4459.0,4458.7,0.0224]
[1758306821419,0.7268,4458.8,4458.7,0.0224]
[1758306821718,0.228,4459.0,4458.7,0.0224]
[1758306821916,0.21970929,4458.9,4458.7,3.2078]
[1758306822116,0.228,4459.0,4458.7,3.2078]
[1758306822315,3.2078,4460.3,4458.7,3.2078]
[1758306822521,0.192,4460.2,4459.5,0.1221]
[1758306822820,0.41624,4460.2,4459.5,0.1221]
[1758306823016,0.22422,4460.1,4459.5,0.1221]
[1758306823417,0.22423,4460.0,4459.5,0.4232]
[1758306823618,0.22422,4460.1,4459.5,0.4232]
[1758306824821,0.192,4460.2,4459.6,0.0224]
[1758306828528,4.0,4460.1,4459.6,0.0224]
[1758306829522,3.2078,4460.3,4459.7,0.3011]
[1758306829724,0.228,4460.2,4459.6,0.3235]
[1758306830227,0.48722694,4460.1,4460.0,0.1221]
[1758306830527,0.48722694,4460.1,4460.0,0.4232]
[1758306830924,0.71522694,4460.1,4460.0,0.4232]
[1758306831530,0.71522694,4460.1,4460.0,0.8338]
[1758306832621,0.48722694,4460.1,4460.0,0.8338]
[1758306832827,0.48722694,4460.1,4460.0,1.23719]
[1758306833828,0.72134818,4460.1,4460.0,1.23719]
[1758306834730,0.39744818,4460.1,4460.0,1.23719]
[1758306835520,0.60014818,4460.1,4460.0,1.23719]
[1758306835827,0.39744818,4460.1,4460.0,1.23719]
[1758306836831,0.39729697,4460.1,4460.0,1.23719]
[1758306837131,0.80259697,4460.1,4460.0,0.8338]
[1758306837424,0.80259697,4460.1,4459.7,3.2078]
[1758306837425,0.6126,4459.9,4459.8,0.3011]
[1758306837732,0.84657003,4459.9,4459.8,0.3011]
[1758306837929,0.84657003,4459.9,4459.8,0.4974]
[1758306840428,0.63927003,4459.9,4459.8,0.4974]
[1758306840724,0.63927003,4459.9,4459.8,0.7801]
[1758306840925,1.09417003,4459.9,4459.8,0.7801]
[1758306841628,0.63927003,4459.9,4459.8,0.7801]
[1758306842026,1.09417003,4459.9,4459.8,0.7801]
[1758306842331,1.039,4459.8,4459.7,3.2078]
[1758306842531,1.039,4459.8,4459.6,0.0224]
[1758306842532,1.27297003,4459.8,4459.6,0.0224]
[1758306842733,0.5841,4459.1,4459.0,1.1281]
[1758306842929,0.81807003,4459.1,4459.0,1.1281]
[1758306843234,1.27297003,4459.1,4459.0,1.1281]
[1758306845133,0.23397003,4459.1,4459.0,1.1281]
[1758306845329,0.23397003,4459.1,4459.0,1.53158]
[1758306845730,0.8121,4459.9,4459.8,0.5722]
[1758306845932,1.04981338,4459.9,4459.8,1.006]
[1758306846331,1.50471338,4459.9,4459.8,1.006]
[1758306846528,1.99665875,4459.9,4459.8,1.006]
[1758306847036,1.76865875,4459.9,4459.8,1.006]
[1758306847237,1.99665875,4459.9,4459.8,1.006]
[1758306847937,1.99665875,4459.9,4459.8,0.7233]
[1758306849140,1.76865875,4459.9,4459.8,0.7233]
[1758306849338,1.76865875,4459.9,4459.6,0.0224]
[1758306849538,1.76865875,4459.8,4459.7,0.4338]
[1758306849732,1.76865875,4459.8,4459.6,0.0224]
[1758306849944,1.76865875,4459.7,4459.6,0.0224]
[1758306850247,1.76865875,4459.7,4459.4,3.2078]
[1758306850444,0.5841,4459.5,4459.4,3.2078]
[1758306850646,1.76865875,4459.5,4459.4,3.6416]
[1758306851242,1.76865875,4459.5,4459.4,0.4338]
[1758306851439,0.5841,4459.0,4458.8,3.2078]
[1758306851644,0.5841,4459.0,4458.9,1.006]
[1758306851845,1.31400791,4459.0,4458.9,1.006]
[1758306854648,1.31400791,4459.0,4458.8,3.2078]
[1758306854649,1.41770791,4459.0,4458.8,3.2078]
[1758306854949,1.41770791,4459.0,4458.7,0.0224]
[1758306854950,0.5841,4458.8,4458.7,0.0224]
[1758306855149,1.76890791,4458.8,4458.7,0.0224]
[1758306855745,1.76890791,4458.8,4458.7,0.7457]
[1758306855942,1.76890791,4458.8,4458.7,1.0284]
[1758306856445,1.76890791,4458.8,4458.7,1.006]
[1758306859354,1.54200791,4458.8,4458.7,1.006]
[1758306860455,1.99690791,4458.8,4458.5,0.0224]
[1758306860751,1.039,4458.6,4458.5,0.0224]
[1758306860956,1.039,4457.9,4457.8,3.9311]
[1758306861160,1.76890791,4457.9,4457.8,3.9311]
[1758306862054,1.31400791,4457.9,4457.8,4.2138]
[1758306862655,1.76890791,4457.9,4457.8,4.2138]
[1758306863359,1.31400791,4457.9,4457.8,4.2138]
[1758306868864,1.02060791,4457.9,4457.8,4.2138]
[1758306869268,0.72990791,4457.9,4457.8,4.2138]
[1758306870565,0.72990791,4457.9,4457.8,8.84171]
[1758306870760,0.23779029,4457.9,4457.8,8.61739]
[1758306872864,0.23779029,4457.9,4457.8,8.2138]
[1758306873059,0.23779029,4457.9,4457.8,4.4418]
[1758306874164,0.23779029,4457.9,4457.8,4.84539]
[1758306874958,0.23779029,4457.9,4457.8,4.4418]
[1758306875467,0.23779029,4457.9,4457.8,4.84539]
[1758306876058,0.23779029,4457.9,4457.8,4.4418]
[1758306877363,0.73415553,4457.9,4457.8,4.4418]
[1758306879870,0.73248698,4457.9,4457.8,4.4418]
[1758306883369,0.73248698,4457.9,4457.8,4.84539]
[1758306883975,0.73248698,4457.9,4457.8,4.4418]
[1758306884575,0.73248698,4457.9,4457.8,4.84539]
[1758306886475,0.73248698,4457.9,4457.8,4.4418]
[1758306887176,0.73248698,4457.9,4457.8,4.84539]
[1758306890378,0.73248698,4457.9,4457.8,4.4418]
[1758306890774,0.73248698,4457.9,4457.8,4.84539]
[1758306891967,0.73272647,4457.9,4457.8,4.84539]
[1758306893974,0.73272647,4457.9,4457.8,4.4418]
[1758306894181,0.73272647,4457.9,4457.8,4.84539]
[1758306895484,0.73272647,4457.9,4457.8,4.61739]
[1758306895781,0.73272647,4457.9,4457.8,4.84539]
[1758306896275,0.73272647,4457.9,4457.8,4.61739]
[1758306896478,0.73272647,4457.9,4457.8,4.84539]
[1758306902688,0.73234463,4457.9,4457.8,4.84539]
[1758306906784,0.73234349,4457.9,4457.8,4.84539]
[1758306913087,0.73234349,4457.9,4457.8,4.61739]
[1758306913287,0.73234349,4457.9,4457.8,4.84439]
[1758306915495,0.73234349,4457.9,4457.8,4.61739]
[1758306915689,0.73234349,4457.9,4457.8,4.84439]
[1758306916897,0.73234349,4457.9,4457.8,4.61739]
[1758306917100,0.73234349,4457.9,4457.8,4.84439]
[1758306918691,0.73244867,4457.9,4457.8,4.84439]
[1758306919701,0.23608343,4457.9,4457.8,4.84439]
[1758306926800,0.4132,4459.1,4459.0,0.40348]
[1758306926998,1.07457228,4459.1,4459.0,1.81418]
[1758306927398,0.79297228,4459.1,4459.0,1.81418]
[1758306930304,0.50387228,4459.1,4459.0,1.81418]
[1758306930903,0.9746,4459.9,4459.8,0.66761]
[1758306931108,1.70275452,4459.9,4459.8,4.32061]
[1758306931811,1.04723452,4459.9,4459.8,4.59961]
[1758306936909,1.04647918,4459.9,4459.8,4.59961]
[1758306937415,0.50317918,4459.9,4459.8,4.59961]
[1758306937604,0.4313,4460.7,4460.6,0.7094]
[1758306937605,0.9746,4460.7,4460.6,0.7094]
[1758306937805,1.47776827,4460.7,4460.6,0.9884]
[1758306938007,1.04646827,4460.7,4460.6,0.9884]
[1758306938807,1.274883,4460.7,4460.6,0.9884]
[1758306939007,1.706183,4460.7,4460.6,0.9884]
[1758306939207,1.706183,4460.7,4460.6,0.7094]
[1758306942710,1.706183,4460.7,4460.5,0.1654]
[1758306942917,1.0482,4460.5,4460.4,3.2078]
[1758306943118,1.779783,4460.5,4460.4,3.2078]
[1758306944318,1.706183,4460.5,4460.4,3.653]
[1758306944514,1.706183,4460.5,4460.4,3.9172]
[1758306945329,1.274883,4460.5,4460.4,4.1962]
[1758306947023,0.997783,4460.5,4460.4,4.1962]
[1758306947327,0.731583,4460.5,4460.4,4.1962]
[1758306948328,0.731583,4460.5,4460.4,4.59956]
[1758306950931,0.73135003,4460.5,4460.4,4.59956]
[1758306953434,0.73135003,4460.5,4460.4,4.82656]
[1758306953732,0.99755003,4460.5,4460.4,4.59956]
[1758306953933,1.70595003,4460.5,4460.4,4.4232]
[1758306954236,1.70595003,4460.5,4460.4,3.653]
[1758306955135,1.77955003,4460.5,4460.4,3.2078]
[1758306955332,1.70595003,4460.5,4460.4,3.9172]
[1758306955939,1.70595003,4460.5,4460.4,3.653]
[1758306957438,1.70595003,4460.5,4460.4,3.9172]
[1758306961343,1.70595003,4460.5,4460.4,3.653]
[1758306961941,1.70595003,4460.5,4460.4,3.9393]
[1758306964644,1.99205003,4460.5,4460.2,0.0224]
[1758306964844,0.5344,4460.3,4460.2,0.423]
[1758306965044,1.68955003,4460.3,4460.2,0.0224]
[1758306965239,0.6657,4460.0,4459.9,3.2078]
[1758306965546,2.04785003,4460.0,4459.9,3.2078]
[1758306965746,0.5344,4459.7,4459.6,0.4006]
[1758306965940,1.68955003,4459.7,4459.6,0.4006]
[1758306968250,1.68955003,4459.7,4459.6,0.6869]
[1758306968644,0.73135003,4459.7,4459.6,0.9612]
[1758306970344,1.00415003,4459.7,4459.6,0.9612]
[1758306971553,0.73135003,4459.7,4459.6,0.9612]
[1758306973650,0.73135003,4459.7,4459.6,1.1882]
[1758306975149,1.00415003,4459.7,4459.6,1.1882]
[1758306976548,1.00415003,4459.7,4459.6,0.9612]
[1758306976950,0.73135003,4459.7,4459.6,0.9612]
[1758306977348,0.73135003,4459.7,4459.6,1.36463]
[1758306977649,0.72920602,4459.7,4459.6,1.36463]
[1758306977849,0.72920602,4459.7,4459.6,0.9612]
[1758306979046,1.00200602,4459.7,4459.6,0.9612]
[1758306979347,1.68740602,4459.7,4459.6,0.4006]
[1758306979550,0.9582,4459.5,4459.4,3.2302]
[1758306979848,1.68740602,4459.5,4459.4,3.2302]
[1758306980044,1.68740602,4459.5,4459.1,0.4006]
[1758306980239,0.5344,4459.2,4459.1,0.6869]
[1758306980444,1.68740602,4459.2,4459.1,0.6869]
[1758306981150,1.68740602,4459.2,4459.1,0.9612]
[1758306983451,0.5344,4459.0,4458.9,3.6084]
[1758306983649,1.68740602,4459.0,4458.9,0.4006]
[1758306985444,1.80410602,4459.0,4458.7,0.0224]
[1758306985651,1.80410602,4459.0,4458.4,3.2078]
[1758306985652,0.9582,4458.5,4458.4,3.2078]
[1758306985956,1.68740602,4458.5,4458.4,3.2078]
[1758306986355,1.68740602,4458.5,4458.4,3.8947]
[1758306987556,1.26360602,4458.5,4458.4,4.169]
[1758306987956,1.68740602,4458.5,4458.4,0.9612]
[1758306988158,1.68740602,4458.5,4458.4,0.4006]
[1758306988358,0.5224,4458.2,4458.1,0.6602]
[1758306988659,1.25160602,4458.2,4458.1,0.9435]
[1758306989163,0.72920602,4458.2,4458.1,0.9435]
[1758306990258,0.72920602,4458.2,4458.1,1.34707]
[1758306990560,0.72920602,4458.2,4458.1,1.57407]
[1758306991455,0.72920602,4458.2,4458.1,1.1705]
[1758306992161,0.72920602,4458.2,4458.1,0.9435]
[1758306992371,0.99160602,4458.2,4458.1,0.9435]
[1758306992656,1.25160602,4458.2,4458.1,0.9435]
[1758306993063,1.66130602,4458.2,4458.1,0.9435]
[1758306993566,1.25160602,4458.2,4458.1,0.9435]
[1758306996363,1.66130602,4458.2,4458.1,0.6602]
[1758306997069,0.5224,4457.6,4457.5,0.5964]
[1758306997271,1.66130602,4457.6,4457.5,0.856]
[1758306997763,1.66702345,4457.6,4457.5,0.856]
[1758306998163,1.66702345,4457.6,4457.5,0.4269]
[1758306999064,0.4097,4457.5,4457.2,3.2078]
[1758306999270,0.9321,4457.3,4457.2,3.2078]
[1758306999571,0.9321,4457.2,4457.1,0.4269]
[1758306999769,1.66702345,4457.2,4457.1,0.4269]
[1758306999963,1.66702345,4457.2,4457.1,0.6865]
[1758307000163,1.66702345,4457.2,4457.1,0.4269]
[1758307000363,0.5224,4456.9,4456.8,0.2596]
[1758307000567,1.66702345,4456.9,4456.8,0.6865]
[1758307001265,1.25732345,4456.9,4456.8,0.9698]
[1758307001862,1.66702345,4456.9,4456.8,0.9698]
[1758307002371,1.68224639,4456.9,4456.8,0.9698]
[1758307003468,1.68191392,4456.9,4456.8,0.9698]
[1758307004165,1.68191392,4456.9,4456.8,0.4269]
[1758307004466,0.9321,4456.8,4456.7,3.2078]
[1758307004663,1.68191392,4456.8,4456.7,3.2078]
[1758307006070,1.68191392,4456.8,4456.7,3.6347]
[1758307009071,1.68191392,4456.8,4456.7,0.6865]
[1758307009870,1.68153966,4456.8,4456.7,0.4269]
[1758307010568,1.68153966,4456.8,4456.7,0.6865]
[1758307012372,1.68153966,4456.8,4456.7,0.9698]
[1758307013169,1.68153966,4456.8,4456.7,0.4269]
[1758307013674,1.68153966,4456.8,4456.7,0.6865]
[1758307017677,1.68162447,4456.8,4456.7,0.6865]
[1758307020174,1.68162447,4456.8,4456.7,0.4269]
[1758307020479,0.9287,4456.6,4456.5,0.3924]
[1758307020771,1.67822447,4456.6,4456.5,1.1135]
[1758307020967,1.28262447,4456.6,4456.5,1.1135]
[1758307021379,1.67822447,4456.6,4456.5,1.1135]
[1758307022979,1.28262447,4456.6,4456.5,1.1135]
[1758307031082,1.50962447,4456.6,4456.5,1.1135]
[1758307032883,1.90522447,4456.6,4456.5,1.1135]
[1758307034177,1.50962447,4456.6,4456.5,1.1135]
[1758307034478,1.24252447,4456.6,4456.5,1.1135]
[1758307034876,1.50962447,4456.6,4456.5,1.1135]
[1758307035382,1.90522447,4456.6,4456.5,1.1135]
[1758307035778,2.99307082,4456.6,4456.5,1.1135]
[1758307035980,3.51108777,4456.6,4456.5,1.1135]
[1758307038682,3.11548777,4456.6,4456.5,1.1135]
[1758307040184,2.62138777,4456.6,4456.5,1.1135]
[1758307040389,2.35591651,4456.6,4456.5,1.1135]
[1758307040685,0.75005321,4456.6,4456.5,5.7416]
[1758307040877,0.7169263,4456.6,4456.5,5.7416]
[1758307041783,0.7169263,4456.6,4456.5,5.51721]
[1758307045182,0.7169263,4456.6,4456.5,5.74421]
[1758307045895,0.23203626,4456.6,4456.5,5.74421]
[1758307048097,37.9578633,4458.4,4458.1,0.9469]
[1758307048098,0.9308,4458.2,4458.1,0.9469]
[1758307052886,1.43668918,4458.2,4458.1,0.9469]
[1758307054502,1.03898918,4458.2,4458.1,0.9469]
[1758307055187,1.44898918,4458.2,4458.1,0.9469]
[1758307057396,0.9262,4457.9,4457.8,3.6045]
[1758307057599,1.43176026,4457.9,4457.8,3.2078]
[1758307057899,1.43176026,4457.9,4457.1,3.6045]
[1758307058087,0.9262,4457.2,4457.1,3.8678]
[1758307058495,0.9262,4457.2,4457.1,4.52396]
[1758307058694,0.227,4457.8,4457.1,4.52396]
[1758307058886,0.2497,4457.3,4457.2,0.9125]
[1758307059091,0.75521845,4457.3,4457.2,0.9125]
[1758307059797,0.75521845,4457.3,4457.2,1.31615]
[1758307059992,0.73183134,4457.3,4457.2,1.31615]
[1758307060194,0.22631289,4457.3,4457.2,1.31615]
[1758307060594,0.22631289,4457.3,4457.2,0.9125]
[1758307060996,0.47601289,4457.3,4457.2,0.9125]
[1758307061193,0.98164592,4457.3,4457.2,0.9125]
[1758307061392,0.98164592,4457.3,4457.2,1.31615]
[1758307061598,0.73194592,4457.3,4457.2,1.31615]
[1758307061794,0.22631289,4457.3,4457.2,1.31615]
[1758307062802,0.22631289,4457.3,4457.2,0.9125]
[1758307063002,0.47601289,4457.3,4457.2,1.1395]
[1758307064002,1.15251289,4457.3,4457.2,1.1395]
[1758307064705,1.65845621,4457.3,4457.2,1.1395]
[1758307064998,0.73225621,4457.3,4457.2,1.54315]
[1758307065204,0.22631289,4457.3,4457.2,1.54315]
[1758307066201,0.22631289,4457.3,4457.2,5.54315]
[1758307069303,0.47601289,4457.3,4457.2,1.31615]
[1758307069512,0.47601289,4457.3,4457.2,1.54315]
[1758307069513,0.88601289,4457.3,4457.2,1.54315]
[1758307070205,1.65924106,4457.3,4457.2,1.1395]
[1758307071812,1.65924106,4457.3,4457.2,0.6237]
[1758307072008,1.65924106,4457.3,4457.2,0.66]
[1758307072307,0.9262,4457.2,4457.1,3.2078]
[1758307072516,1.65924106,4457.2,4457.1,3.2078]
[1758307077410,1.65924106,4457.2,4457.1,3.6045]
[1758307077609,1.65924106,4457.2,4457.1,4.1203]
[1758307078010,0.73304106,4457.2,4457.1,4.75096]
[1758307081214,0.22631289,4457.2,4457.1,4.75096]
[1758307081418,0.5053,4458.0,4457.9,0.8968]
[1758307081615,1.13104305,4458.0,4457.9,4.1046]
[1758307081816,1.64540923,4458.0,4457.9,4.1046]
[1758307082418,0.76730923,4458.0,4457.9,4.1046]
[1758307083015,1.02910923,4458.0,4457.9,4.1046]
[1758307083322,1.64540923,4458.0,4457.9,4.1046]
[1758307084318,1.27260923,4458.0,4457.9,4.1046]
[1758307084619,1.27260909,4458.0,4457.9,4.1046]
[1758307085014,1.64540909,4458.0,4457.9,4.1046]
[1758307086017,1.27260909,4458.0,4457.9,4.1046]
[1758307086418,1.64540909,4458.0,4457.9,4.1046]
[1758307087321,1.27260909,4458.0,4457.9,4.1046]
[1758307091733,1.02910909,4458.0,4457.9,4.1046]
[1758307092235,1.64540909,4458.0,4457.9,4.1046]
[1758307093726,1.64540909,4458.0,4457.9,4.3316]
[1758307094126,1.64540909,4458.0,4457.9,4.1046]
[1758307094331,1.80290909,4458.0,4457.9,3.2078]
[1758307094532,1.80290909,4458.0,4457.9,3.5745]
[1758307094731,1.80290909,4458.0,4457.9,3.8391]
[1758307095131,1.64540909,4458.0,4457.9,3.8391]
[1758307095533,0.76730909,4458.0,4457.9,4.1046]
[1758307096831,0.76730909,4458.0,4457.9,4.3316]
[1758307097036,1.02910909,4458.0,4457.9,4.3316]
[1758307098234,1.02910909,4458.0,4457.9,4.1046]
[1758307098435,1.02910909,4458.0,4457.9,4.3316]
[1758307099736,0.76730909,4458.0,4457.9,4.3316]
[1758307101546,1.64540909,4458.0,4457.9,4.3316]
[1758307102340,1.27260909,4458.0,4457.9,4.3316]
[1758307102844,1.02910909,4458.0,4457.9,4.3316]
[1758307103037,0.76730909,4458.0,4457.9,4.3316]
[1758307104242,0.76730909,4458.0,4457.9,4.73518]
[1758307107537,0.76730909,4458.0,4457.9,8.9595]
[1758307107739,0.76730909,4458.0,4457.9,8.73518]
[1758307112646,0.51436618,4458.0,4457.9,8.73518]
[1758307112846,0.76800891,4458.0,4457.9,4.73518]
[1758307115452,0.76800891,4458.0,4457.9,4.50818]
[1758307115654,0.76800891,4458.0,4457.9,4.73518]
[1758307118045,1.67840891,4458.0,4457.9,3.8391]
[1758307118253,5.82660891,4458.0,4457.9,3.2078]
[1758307119346,1.82660891,4458.0,4457.9,3.2078]
[1758307120853,5.82660891,4458.0,4457.7,0.0224]
[1758307121052,0.9104,4457.8,4457.7,0.0224]
[1758307121259,1.67840891,4457.8,4457.7,0.0224]
[1758307121461,0.9104,4457.7,4457.6,0.4877]
[1758307121752,1.67840891,4457.7,4457.6,0.8772]
[1758307123956,1.29070891,4457.7,4457.6,0.8772]
[1758307125455,1.67840891,4457.7,4457.6,0.8772]
[1758307128857,1.67794567,4457.7,4457.6,0.8772]
[1758307132859,1.6779369,4457.7,4457.6,0.8772]
[1758307136153,0.1482,4457.5,4457.4,0.0224]
[1758307136353,1.8261369,4457.5,4457.4,0.0224]
[1758307136555,1.4384369,4457.5,4457.3,3.2078]
[1758307136757,1.6779369,4457.4,4457.3,3.5973]
[1758307137464,1.6779369,4457.4,4457.3,3.8454]
[1758307139257,0.3727,4457.3,4456.4,3.5988]
[1758307139461,8.4980369,4457.4,4456.4,3.5988]
[1758307139462,0.8555,4456.5,4456.4,3.86]
[1758307139665,1.6230369,4456.5,4456.4,3.86]
[1758307139855,1.6230369,4456.5,4456.4,0.6522]
[1758307143166,1.6230369,4456.5,4456.4,0.8977]
[1758307148870,1.6230369,4456.5,4456.4,8.50922]
[1758307148871,0.7675369,4456.5,4456.4,8.50922]
[1758307149066,0.25317072,4456.5,4456.4,8.50922]
[1758307149272,0.25317072,4456.5,4456.4,8.73361]
[1758307149769,0.25317072,4456.5,4456.4,8.50922]
[1758307150762,0.3727,4457.6,4457.5,0.1472]
[1758307150968,0.75352254,4457.6,4457.5,0.6539]
[1758307151367,0.75352254,4457.6,4457.5,1.0449]
[1758307152671,0.51592254,4457.6,4457.5,1.0449]
[1758307152863,0.6103,4458.3,4458.2,0.8977]
[1758307153064,1.37142931,4458.3,4458.2,0.6522]
[1758307153264,0.3727,4457.7,4457.6,3.2078]
[1758307153466,0.8555,4457.2,4457.1,3.2078]
[1758307153770,1.37142931,4457.2,4456.8,0.391]
[1758307153974,0.8555,4456.9,4456.8,0.391]
[1758307154171,1.37142931,4456.9,4456.8,0.391]
[1758307154363,0.2376,4456.6,4456.5,3.5988]
[1758307154566,1.37142931,4456.6,4456.5,3.86]
[1758307154769,0.99872931,4456.6,4456.5,4.2527]
[1758307155171,1.37142931,4456.6,4456.5,4.2527]
[1758307155772,0.99872931,4456.6,4456.5,4.2527]
[1758307156275,1.37142931,4456.6,4456.5,4.2527]
[1758307159279,1.37142931,4456.6,4456.5,4.1055]
[1758307159576,1.37142931,4456.6,4456.5,3.86]
[1758307161877,1.37142931,4456.6,4456.5,4.1055]
[1758307162278,1.37142931,4456.6,4456.5,4.2527]
[1758307162778,1.62899738,4456.6,4456.5,4.2527]
[1758307166784,1.25629738,4456.6,4456.5,4.2527]
[1758307167484,0.77349738,4456.6,4456.5,4.2527]
[1758307168774,1.01109738,4456.6,4456.5,4.2527]
[1758307169385,1.01163995,4456.6,4456.5,4.2527]
[1758307170386,1.39583995,4456.6,4456.5,4.2527]
[1758307171088,1.01163995,4456.6,4456.5,4.2527]
[1758307172484,0.77403995,4456.6,4456.5,4.2527]
[1758307173387,0.77403995,4456.6,4456.5,4.65641]
[1758307174186,0.77403995,4456.6,4456.5,4.88341]
[1758307176488,0.77403995,4456.6,4456.5,4.4797]
[1758307177389,1.03853995,4456.6,4456.5,4.2527]
[1758307177593,1.68213995,4456.6,4456.5,4.4797]
[1758307177982,1.29793995,4456.6,4456.5,4.4797]
[1758307178389,0.77403995,4456.6,4456.5,4.88341]
[1758307178588,0.77403995,4456.6,4456.5,4.4797]
[1758307179389,0.77403995,4456.6,4456.5,4.2527]
[1758307179591,0.77403995,4456.6,4456.5,4.4797]
[1758307181096,1.68213995,4456.6,4456.5,4.4797]
[1758307181492,0.77403995,4456.6,4456.5,4.88341]
[1758307182387,0.77403995,4456.6,4456.5,9.1078]
[1758307182897,0.77403995,4456.6,4456.5,8.88341]
[1758307187399,0.77403995,4456.6,4456.5,4.88341]
[1758307187795,0.2645,4457.7,4457.6,0.8842]
[1758307187996,0.6487,4457.7,4457.6,0.8842]
[1758307188195,0.9081,4457.7,4457.6,0.8842]
[1758307190702,0.9081,4457.3,4457.2,0.3839]
[1758307191000,0.9081,4457.3,4457.2,0.6431]
[1758307191704,0.9081,4457.3,4457.2,1.28785]
[1758307192004,4.1159,4458.0,4457.9,0.6431]
[1758307192198,4.2632,4458.0,4457.5,0.1473]
[1758307192400,4.2632,4458.0,4457.6,0.3839]
[1758307193098,4.2632,4458.0,4457.5,0.1473]
[1758307193893,4.2632,4458.0,4457.6,0.3839]
[1758307194100,0.9081,4457.7,4457.6,0.6431]
[1758307194597,0.9081,4457.7,4457.6,0.3839]
[1758307194800,0.5239,4457.7,4457.1,0.3839]
[1758307194998,0.2645,4457.2,4457.1,0.8842]
[1758307195301,0.2645,4457.2,4457.1,1.28786]